Cogmind - Beta 13 @@@ ROGUE MODE // 2024.04.06 @ 19:00:54 Player: dohmmass Result: Destroyed by P-60 Hacker with Shock Rifle Performance ------------- Evolutions (3) 1500 Regions Visited (4) 800 Robots Destroyed (71) 355 Value Destroyed (2507) 2507 Prototype IDs (3) 60 Alien Tech Used (0) 0 Bonus (97) 97 TOTAL SCORE: 5319 Bonus ------- High Alert Combat Kills 97 Cogmind --------- Core Integrity 0/700 Matter 300/300 Energy 100/100 System Corruption 18% Temperature Cool (0) Movement Core (50) Location -7/Factory Parts ------- > --- POWER (2) -------- (None) > --- PROPULSION (2) --- (None) > --- UTILITY (6) ------ (None) > --- WEAPON (3) ------- (None) > --- INVENTORY (5) ---- Compact Wheel Hacking Suite Peak State ------------ > --- POWER ------------ Light Deuterium Engine Nuclear Core > --- PROPULSION ------- Armored Huge Wheel > --- UTILITY ---------- Sensor Array Signal Interpreter Improved Terrain Scan Processor Advanced Targeting Computer ECM Suite > --- WEAPON ----------- Shock Rifle Shock Rifle Shock Rifle > --- INVENTORY -------- Compact Wheel Advanced Targeting Computer Hacking Suite Shock Rifle [Rating: 33] Favorites ----------- Power Ion Engine Engine Ion Engine Power Core Nuclear Core Propulsion Light Treads Treads Light Treads Wheel Armored Huge Wheel Utility ECM Suite Device ECM Suite Processor Signal Interpreter Protection Weapon Shielding Weapon Shock Rifle Energy Gun Shock Rifle Energy Cannon Advanced Beam Cannon Launcher Missile Launcher Build | -11 -10 -9 -8 -7 ------- Run | Yrd Mat Mat Mat Fac Slots Evolved 6 | . . 2 2 2 Power 1 | . . 1 . . Propulsion . | . . . . . Utility 4 | . . . 2 2 Weapon 1 | . . 1 . . Parts Attached 54 | 5 4 14 23 8 Power 10 | 1 1 2 5 1 Engine 9 | 1 1 2 4 1 Core 1 | . . . 1 . Reactor . | . . . . . Propulsion 10 | 2 . 2 5 1 Treads 7 | 2 . 2 3 . Leg . | . . . . . Wheel 3 | . . . 2 1 Hover . | . . . . . Flight . | . . . . . Utility 12 | . 2 3 3 4 Device 7 | . 1 3 2 1 Storage . | . . . . . Processor 4 | . . . 1 3 Hackware . | . . . . . Protection 1 | . 1 . . . Artifact . | . . . . . Weapon 22 | 2 1 7 10 2 Energy Gun 18 | 2 1 4 9 2 Energy Cannon 1 | . . . 1 . Ballistic Gun . | . . . . . Ballistic Cannon . | . . . . . Launcher 3 | . . 3 . . Special Weapon . | . . . . . Impact Weapon . | . . . . . Slashing Weapon . | . . . . . Piercing Weapon . | . . . . . Special Melee Weapon . | . . . . . Unidentified Prototypes 3 | . . 1 2 . Parts Lost 37 | . 3 5 13 16 Power 8 | . 1 1 3 3 Propulsion 5 | . . 2 2 1 Utility 11 | . . 2 2 7 Weapon 13 | . 2 . 6 5 Highest Loss Streak 8 | . 1 2 4 8 To Critical Strikes . | . . . . . Average Slot Usage (%) 84 | . 92 96 84 67 Engine 12 | . 13 21 11 4 Core 2 | . . . 2 4 Treads 13 | . 28 20 11 . Wheel 1 | . . . . 6 Device 19 | . 12 18 26 12 Processor 8 | . . . 9 22 Protection 2 | . 11 2 . . Energy Gun 20 | . 25 19 21 14 Launcher 3 | . . 11 2 . Naked Turns 27 | . . . . 27 Heaviest Build 28 | 9 12 27 28 24 Greatest Support 43 | 40 40 40 43 28 Greatest Overweight (x) 7 | . . 1 7 3 Average Overweight (x) . | . . . . . Largest Inventory Capacity 5 | 5 5 5 5 5 Average Capacity 5 | 5 5 5 5 5 Most Carried 5 | 5 5 5 5 5 Average Carried 3 | 1 2 4 4 2 Final Capacity 5 | 5 5 5 5 5 Final Carried 5 | . 5 5 4 2 Class Distribution -------------------- 40% | Skirmisher 37% | Mutant 18% | Gunner 3% | Tank Dominant Class ---------------- Mutant | -10/Materials Gunner | -9/Materials Skirmisher | -8/Materials Mutant | -7/Factory Resources | -11 -10 -9 -8 -7 ----------- Run | Yrd Mat Mat Mat Fac Matter Collected 848 | 182 98 211 307 50 Remotely . | . . . . . Salvage Created 3223 | . 503 711 1320 689 Parts 173 | . 26 46 75 26 Haulers Intercepted 4 | . . . 4 . Recyclers Shooed 1 | . . 1 . . Parts Field Recycled . | . . . . . Retrieved Matter . | . . . . . Parts Self-Destructed . | . . . . . Prevented . | . . . . . Kills | -11 -10 -9 -8 -7 ------- Run | Yrd Mat Mat Mat Fac Combat Hostiles Destroyed 59 | . 10 18 19 12 Guns 39 | . 6 11 16 6 AOE 17 | . 4 7 2 4 Classes Destroyed 12 | . 2 4 5 1 Worker 2 | . . 1 1 . Builder 1 | . . . 1 . Hauler 4 | . . . 4 . Recycler 1 | . . . 1 . Operator 1 | . . . 1 . Watcher 3 | . 2 . 1 . Swarmer 6 | . . 3 3 . Grunt 34 | . 10 8 8 8 Brawler 3 | . . 1 . 2 Duelist 1 | . . . . 1 Sentry 12 | . . 6 6 . Hunter 3 | . . . 2 1 Best Kill Streak 5 | . 4 4 5 5 Combat Bots Only 5 | . 4 4 3 5 Max Kills in Single Turn 2 | . 2 2 2 2 Gunslinging . | . . . . . Exploded 2 | . 2 2 1 2 Melee . | . . . . . Uniques/NPCs Destroyed . | . . . . . Combat | -11 -10 -9 -8 -7 -------- Run | Yrd Mat Mat Mat Fac Hostile Shots Fired 334 | . 62 46 107 119 Missed 99 | . 20 19 30 30 Damage Taken 3775 | . 530 525 1162 1558 Core 1003 | . 60 72 162 709 Absorbed by Shields . | . . . . . Redirected to Shielding 52 | . 47 5 . . Core Remaining (%) 82 | 100 76 82 70 . Volleys Fired 167 | . 34 30 66 37 Largest 3 | . 2 3 3 3 Hottest 150 | . 80 126 150 150 Shots Fired 297 | . 60 74 109 54 Gun 281 | . 60 58 109 54 Cannon . | . . . . . Launcher 16 | . . 16 . . Special . | . . . . . Kinetic . | . . . . . Thermal . | . . . . . Explosive 16 | . . 16 . . Electromagnetic 281 | . 60 58 109 54 Robot Hit Streak 18 | . 10 8 18 17 Robot Miss Streak 7 | . 7 2 3 2 Penetration Max . | . . . . . Secondary Targets 1 | . . . . 1 Max Gunslinging Chain 1 | . . . . 1 Shots Hit Robots 216 | . 40 47 89 40 Core Hits 128 | . 23 28 47 30 Critical Kills . | . . . . . Critical Parts Destroyed . | . . . . . Critical Strikes 2 | . . 1 1 . Corrupt 2 | . . 1 1 . Melee Attacks . | . . . . . Impact . | . . . . . Slashing . | . . . . . Piercing . | . . . . . Sneak Attacks . | . . . . . Combat Hostiles . | . . . . . Follow-up Attacks . | . . . . . Damage Inflicted 5224 | . 862 1296 1790 1276 Guns 3438 | . 553 557 1535 793 Cannons . | . . . . . Explosions 1623 | . 309 739 255 320 Melee . | . . . . . Ramming 163 | . . . . 163 Kinetic . | . . . . . Thermal 1003 | . 309 175 255 264 Explosive 564 | . . 564 . . Electromagnetic 3494 | . 553 557 1535 849 Impact . | . . . . . Slashing . | . . . . . Piercing . | . . . . . Highest Corruption 18 | . . . . 18 Average Corruption 8 | . . . . 8 Corruption Purged . | . . . . . Corruption Blocked . | . . . . . Effects 3 | . . . . 3 Message Errors 1 | . . . . 1 Matter Fused 1 | . . . . 1 Misdirections 1 | . . . . 1 Overload Shots . | . . . . . Overflow Damage 76 | . 4 . 60 12 Projectiles . | . . . . . Explosions 71 | . 4 . 60 7 Melee 5 | . . . . 5 Knockbacks 1 | . . . . 1 Impact 1 | . . . . 1 Kinetic . | . . . . . Secondary . | . . . . . Self-Inflicted Damage 302 | . . 127 62 113 Shots 6 | . . 3 2 1 Rammed 64 | . . . 1 63 Targets Rammed 64 | . . . 1 63 Kicked . | . . . . . Crushed . | . . . . . Highest Temperature 351 | . 219 162 252 351 Average Temperature 85 | . 72 34 54 160 Received Heat Transfer 1224 | . 291 123 432 378 Effects 5 | . . . . 5 Interference 5 | . . . . 5 Siege Activations . | . . . . . Robots Corrupted 5 | . . . 3 2 Combat Hostiles 3 | . . . 1 2 Parts Fried 22 | . 2 2 12 6 Impact Corruptions 1 | . . . . 1 Robots Melted . | . . . . . Combat Hostiles . | . . . . . Parts Melted . | . . . . . Heat Transferred 1150 | . 300 200 350 300 Parts Sabotaged . | . . . . . Parts Stolen . | . . . . . Parts Stripped . | . . . . . Power Chain Reactions 12 | . 3 2 4 3 Alert | -11 -10 -9 -8 -7 ------- Run | Yrd Mat Mat Mat Fac Peak Influence 643 | . 306 643 582 308 Initial 271 | . . 128 271 210 Average 304 | . 122 331 398 219 Maximum Alert Level 2 | . 1 2 2 1 Low Security (%) 20 | 100 76 24 . 18 Level 1 50 | . 23 53 42 81 Level 2 28 | . . 22 57 . Level 3 . | . . . . . Level 4 . | . . . . . Level 5 . | . . . . . High Security . | . . . . . Max Security . | . . . . . Squads Dispatched 12 | . 3 3 2 4 Investigation 4 | . 2 . 1 1 Extermination 1 | . . . . 1 Reinforcement 7 | . 1 3 1 2 Assault . | . . . . . Garrison . | . . . . . Intercept . | . . . . . Searches Triggered . | . . . . . Construction Impeded 3 | . . 1 1 1 Haulers Reinforced . | . . . . . Active Scanning Responses . | . . . . . Cargo Convoy Interrupts . | . . . . . Stealth | -11 -10 -9 -8 -7 --------- Run | Yrd Mat Mat Mat Fac Distress Signals 2 | . . 1 1 . Communications Jammed . | . . . . . Distress Signals . | . . . . . Times Spotted 91 | . 16 27 31 17 Peak Tracking Total 5 | . 4 4 5 5 Tactical Retreats 8 | . . 3 3 2 Traps | -11 -10 -9 -8 -7 ------- Run | Yrd Mat Mat Mat Fac Traps Triggered 3 | . 1 2 . . Indirectly . | . . . . . Trap Hack Attempts . | . . . . . Triggered . | . . . . . Disarmed . | . . . . . Reprogrammed . | . . . . . Reused . | . . . . . Traps Extracted . | . . . . . Installed . | . . . . . Triggered . | . . . . . Machines | -11 -10 -9 -8 -7 ---------- Run | Yrd Mat Mat Mat Fac Machines Disabled 6 | . 2 2 1 1 Max in Single Turn 1 | . 1 1 1 1 Machines Repaired . | . . . . . Machines Dismantled . | . . . . . Machines Sabotaged . | . . . . . Overloaded Fab Kills . | . . . . . Hacking | -11 -10 -9 -8 -7 --------- Run | Yrd Mat Mat Mat Fac Machines Accessed 3 | . . 1 1 1 Terminals 3 | . . 1 1 1 Fabricators . | . . . . . Repair Stations . | . . . . . Recycling Units . | . . . . . Scanalyzers . | . . . . . Garrison Access . | . . . . . Total Hacks 11 | . . 4 4 3 Successful 2 | . . 1 . 1 Failed 9 | . . 3 4 2 Catastrophic 2 | . . . 2 . Database Lockouts . | . . . . . Manual . | . . . . . Terminals 11 | . . 4 4 3 Fabricators . | . . . . . Repair Stations . | . . . . . Recycling Units . | . . . . . Scanalyzers . | . . . . . Garrison Access . | . . . . . Terminal Hacks 2 | . . 1 . 1 Record 2 | . . 1 . 1 Fabricator Hacks . | . . . . . Repair Station Hacks . | . . . . . Recycling Unit Hacks . | . . . . . Scanalyzer . | . . . . . Garrison Access Hacks . | . . . . . Unauthorized Hacks . | . . . . . Terminals . | . . . . . Fabricators . | . . . . . Repair Stations . | . . . . . Recycling Units . | . . . . . Scanalyzers . | . . . . . Garrison Access . | . . . . . Data Cores Recovered 1 | . . . 1 . Used . | . . . . . Hacking Detections 3 | . . 1 1 1 Full Trace Events 3 | . . 1 1 1 Feedback Events . | . . . . . Feedback Blocked . | . . . . . Robot Schematics Acquired . | . . . . . Robots Built . | . . . . . Authchips . | . . . . . Time . | . . . . . Total Robot Build Rating . | . . . . . Part Schematics Acquired . | . . . . . Parts Built . | . . . . . Authchips . | . . . . . Time . | . . . . . Total Part Build Rating . | . . . . . Parts Repaired . | . . . . . Time . | . . . . . Parts Recycled . | . . . . . Recycled Matter . | . . . . . Retrieved Matter . | . . . . . Retrieved Components . | . . . . . Parts Scanalyzed . | . . . . . Part Schematics Acquired . | . . . . . Parts Damaged . | . . . . . Bothacking | -11 -10 -9 -8 -7 ------------ Run | Yrd Mat Mat Mat Fac Used RIF Installer . | . . . . . Robots Hacked . | . . . . . Non-combat . | . . . . . Combat . | . . . . . Robot Hacks Applied . | . . . . . Relay Couplers Released . | . . . . . Fabnet Peak Effective % . | . . . . . Robots Rewired . | . . . . . Allies Hacked . | . . . . . Hacks Repelled . | . . . . . Allies | -11 -10 -9 -8 -7 -------- Run | Yrd Mat Mat Mat Fac Total Allies . | . . . . . Largest Group . | . . . . . Highest-Rated Group . | . . . . . Highest-Rated Ally . | . . . . . Total Orders . | . . . . . Ally Attacks . | . . . . . Total Damage . | . . . . . Kills . | . . . . . Allies Corrupted . | . . . . . Allies Melted . | . . . . . Intel | -11 -10 -9 -8 -7 ------- Run | Yrd Mat Mat Mat Fac Robot Analysis Total . | . . . . . Derelict Logs Recovered . | . . . . . Drone Launches . | . . . . . Drone Recoveries . | . . . . . Exploration | -11 -10 -9 -8 -7 ------------- Run | Yrd Mat Mat Mat Fac Turns Passed 3155 | 46 384 754 1293 678 Spaces Moved 1586 | 36 166 376 515 493 Core 106 | 19 . . 75 12 Treads 956 | 17 166 376 397 . Legs . | . . . . . Wheels 524 | . . . 43 481 Hover . | . . . . . Flight . | . . . . . Fastest Speed 50 | 50 160 160 90 50 Average Speed 149 | 101 160 162 189 98 Slowest Speed 400 | 160 160 240 400 200 Overloaded Moves . | . . . . . Propulsion Burnouts . | . . . . . Robots Hopped . | . . . . . Cave-ins Triggered . | . . . . . Exploration Rate (%) 35 | 4 56 45 51 20 Regions Visited 4 Branch Regions . Pre-discovered Areas . | . . . . . Known Exits Taken 1 | . . . 1 . Unknown Exits Taken 3 | 1 1 1 . . Scrap Searched . | . . . . . Spaces Dug . | . . . . . Terrain Destroyed 160 | . 2 137 13 8 Melee . | . . . . . Projectile . | . . . . . AOE 160 | . 2 137 13 8 Terrain Rammed . | . . . . . Walls Destroyed . | . . . . . Machines Disabled . | . . . . . Actions | -11 -10 -9 -8 -7 --------- Run | Yrd Mat Mat Mat Fac Total 2085 | 45 225 456 735 624 Wait 143 | . 11 17 100 15 Move 1582 | 35 165 375 514 493 Hop . | . . . . . Pick Up 57 | 5 10 14 22 6 Fast Attach . | . . . . . Attach 41 | 5 4 8 16 8 Detach . | . . . . . Swap 13 | . . 6 7 . Drop 18 | . 1 6 9 2 Fire 167 | . 34 30 66 37 Melee . | . . . . . Ram 64 | . . . 1 63 Kick . | . . . . . Crush . | . . . . . Escape Stasis . | . . . . . Rewire . | . . . . . Trap . | . . . . . Miscellaneous . | . . . . . Route ------- -11/Scrapyard -10/Materials -9/Materials -8/Materials -7/Factory History --------- Turn | Location | Event 3 | -11/Scrapyard | Discovered new exit (range 15) 47 | -11/Scrapyard | Entered Materials 301 | -10/Materials | Build established: Mutant 370 | -10/Materials | Discovered new exit (range 12) 431 | -10/Materials | Entered another Materials area 431 | -9/Materials | Evolved 2 slots: Power x1, Weapon x1 903 | -9/Materials | Build established: Gunner 1168 | -9/Materials | Discovered new exit (range 4) 1185 | -9/Materials | Entered another Materials area 1185 | -8/Materials | Evolved 2 slots: Utility x2 1544 | -8/Materials | Lost 4 parts (1u3w) 1820 | -8/Materials | Lost 4 parts (1p1n2w) 2309 | -8/Materials | Build established: Skirmisher 2470 | -8/Materials | Discovered new exit (range 5) 2476 | -8/Materials | Identified exit to Factory 2478 | -8/Materials | Entered Factory 2478 | -7/Factory | Evolved 2 slots: Utility x2 2829 | -7/Factory | Lost 4 parts (1p1u2w) 3001 | -7/Factory | Lost 3 parts (1p2w) 3074 | -7/Factory | Build established: Mutant 3118 | -7/Factory | System corruption reached 10% 3124 | -7/Factory | Core integrity fell below 50% 3145 | -7/Factory | Core integrity fell below 20% 3156 | -7/Factory | Destroyed by P-60 Hacker with Shock Rifle Last Messages --------------- 03118_ Slammed into P-60 Hacker. 03124_ Destabilizing: System corrupted (+1). 03125_ Slammed into P-60 Hacker. 03125_ Destabilizing: Core damaged (-21). 03126_ GWV6X>/N 03129_ Broken Imp. Terrain Scan Processor destroyed. 03129_ System corrupted by crushing effect (+3). 03130_ Slammed into P-60 Hacker. 03146_ System corrupted: Matter fused (-5). 03146_ Acquired 5 matter. 03146_ Slammed into P-60 Hacker. 03147_ Destroyed Target Analyzer. 03147_ P-60 Hacker system corrupted by crushing effect. 03147_ Destabilizing: Core damaged (-14). 03148_ Slammed into P-60 Hacker. 03148_ P-60 Hacker knocked back. 03149_ Slammed into P-60 Hacker. Map ----- +----------------------------------------------------+ | ????# # #?????????# #??# #????# | | ????############## #?????????# #??# ###### | | ????????#! ??# #?????????#+#??# | | ????????# ]?# #??????????????# | | ????????# ?# #??????????????# !! """" | | ????????# # #??????????????? !! """" | | ????????# !!! # #??????????????? !! """" | | ????????# !! + #??????????????? | | ????????# !! # #??????????????# """" """" | | ????????# # #??????????????# """" """" | | ????????# [ ?# #??????????????# """" """" | | ????????########?# #??????????????# | | ????????? # ###????????????# | | ???????""""""""" # +????????????# | | ????# + ###????????????# | | ??????""" """ # #????####+###### | | ?????????S""" # #????# """ | | ?????????#######?# #????# """ !! | | ?????????????#######+######?# """ !! | | ?????????????# %%%%%%%%%#?# | | ?????????????# """""""%#?# | | ?????????????# """""""%######+#######" "## | | ?????????????# """""""%# #"Y"?# | | ?????????????# %"%%""""%# #""??# | | ?????????????# %%%%%%%%%%# #????# | | ?????????????# %%""""""%@# #????# | | ?????????????# %%"""""""p# """ """ ###### | | ?????????????# %%"""""""%# """ """ + | | ?????????????# """"""" # """ """ ########+#+ | | ?????????????# # # | | ?????????????# # """ """ # """" | | ?????????????############## """ """ # | | ??????????????????????????# """ """ # """" | | ??????????????????????????# ? # | | ??????????????????????????###???######## """" | | ???????????????????????????????????????#= | | ???????????????????????????????????????# """" | | ???????????????????????????????????????# | | ???????????????????????????????????????########### | | | | | | | | | | | | | | | | | | | | | | | +----------------------------------------------------+ Best States ------------- Heat Dissipation 53 Energy Generation 23 Energy Capacity 400 Matter Stores 300 Matter Capacity 300 Sight Range 16 Robot Scan Range 14 Terrain Scan Density 110 ECM Strength 1 Weapon Shielding 33 Evasion (%) 50 Targeting Accuracy 16 Recoil Reduction 2 Matter Filtering 30 Item Schematics ----------------- None Robot Schematics ------------------ None Fabricated ------------ Nothing Alien Tech Used ----------------- None Achievements -------------- None Challenges ------------ None Game ------ Seed MicroWeightVibroblade Manual? 0 Play Time 00:29:25 Cumulative 23.0 hours Start 2024.04.06 @ 18:31:34 End 2024.04.06 @ 19:00:54 Sessions 1 Manual Loads 0 Difficulty Rogue Special Mode None Game No. 45 Rogue 45 Adventurer 0 Explorer 0 Win Type - Total 0 Types 0/0/0/0/0/0/0/0/0 Lore% 14 Gallery% 30 Achievement% 21 Wizard Run 0 Options --------- Layout 1 ASCII 0 Keyboard 0 Movement Mouse Keybinds 0 Fullscreen 1 Font 24/Smallcaps Map View 50x35 Zoom Use 0% Tactical HUD 1 Map Filters NONE Filters NONE Steam 1 RUN: 308a44dc-43ca-4460-8be9-30e8a5e93ee7